[Event "Titled Tuesday Blitz May 16 Early 2023"]
[White "Omelja, Artem"]
[Black "LangesNasenhaar"]
[WhiteFideId "14119846"]
[WhiteElo "2404"]
[BlackElo "2436"]
[Result "1-0"]
[Round "07"]
[TimeControl "180+2"]
[Date "2023.05.16"]
[WhiteClock "0:02:04"]
[BlackClock "0:00:07"]

1. e4 {[%clk 0:02:56]}  d6 {[%clk 0:03:00]} 2. d4 {[%clk 0:02:54]}  Nf6 {[%clk 0:03:00]} 3. Nc3 {[%clk 0:02:54]}  Nbd7 {[%clk 0:03:01]} 4. Be3 {[%clk 0:02:52]}  e5 {[%clk 0:03:01]} 5. f3 {[%clk 0:02:51]}  c6 {[%clk 0:03:01]} 6. Nge2 {[%clk 0:02:51]}  b5 {[%clk 0:03:01]} 7. a3 {[%clk 0:02:50]}  a5 {[%clk 0:02:56]} 8. Qd2 {[%clk 0:02:50]}  Rb8 {[%clk 0:02:50]} 9. g4 {[%clk 0:02:49]}  b4 {[%clk 0:02:49]} 10. axb4 {[%clk 0:02:50]}  axb4 {[%clk 0:02:49]} 11. Nd1 {[%clk 0:02:51]}  exd4 {[%clk 0:02:46]} 12. Nxd4 {[%clk 0:02:50]}  Ne5 {[%clk 0:02:40]} 13. Bg2 {[%clk 0:02:47]}  Bb7 {[%clk 0:02:32]} 14. b3 {[%clk 0:02:45]}  c5 {[%clk 0:02:23]} 15. Nf5 {[%clk 0:02:43]}  g6 {[%clk 0:02:20]} 16. Ng3 {[%clk 0:02:42]}  Be7 {[%clk 0:02:14]} 17. O-O {[%clk 0:02:41]}  h5 {[%clk 0:02:12]} 18. g5 {[%clk 0:02:39]}  Nfd7 {[%clk 0:02:08]} 19. h4 {[%clk 0:02:37]}  O-O {[%clk 0:01:58]} 20. Nf2 {[%clk 0:02:36]}  f6 {[%clk 0:01:43]} 21. f4 {[%clk 0:02:36]}  Ng4 {[%clk 0:01:43]} 22. Nxg4 {[%clk 0:02:35]}  hxg4 {[%clk 0:01:44]} 23. Qe2 {[%clk 0:02:32]}  f5 {[%clk 0:01:31]} 24. h5 {[%clk 0:02:32]}  d5 {[%clk 0:01:12]} 25. hxg6 {[%clk 0:02:06]}  dxe4 {[%clk 0:00:55]} 26. Nxf5 {[%clk 0:02:06]}  Rxf5 {[%clk 0:00:48]} 27. Qxg4 {[%clk 0:02:05]}  Qf8 {[%clk 0:00:40]} 28. Bh3 {[%clk 0:02:05]}  Rd5 {[%clk 0:00:20]} 29. Qe6+ {[%clk 0:02:05]}  Kg7 {[%clk 0:00:20]} 30. Rad1 {[%clk 0:02:04]}  Rxd1 {[%clk 0:00:11]} 31. Rxd1 {[%clk 0:02:05]}  Rd8 {[%clk 0:00:11]} 32. Rxd7 {[%clk 0:02:04]}  Rxd7 {[%clk 0:00:10]} 33. Qxd7 {[%clk 0:02:05]}  Bc8 {[%clk 0:00:07]} 34. Qxc8 {[%clk 0:02:04]} 1-0


[Site "https://www.chess.com"]

[Event "Titled Tuesday Blitz May 16 Early 2023"]
[White "Bagwe Gaurang"]
[Black "Yosha_Iglesias"]
[WhiteFideId "45039895"]
[WhiteElo "1847"]
[BlackElo "2419"]
[Result "1-0"]
[Round "07"]
[TimeControl "180+2"]
[Date "2023.05.16"]
[WhiteClock "0:00:08"]
[BlackClock "0:00:00"]

1. e4 {[%clk 0:03:00]}  c5 {[%clk 0:02:59]} 2. Nf3 {[%clk 0:02:58]}  d6 {[%clk 0:02:59]} 3. d4 {[%clk 0:02:58]}  cxd4 {[%clk 0:03:00]} 4. Nxd4 {[%clk 0:02:59]}  Nf6 {[%clk 0:03:00]} 5. Nc3 {[%clk 0:02:59]}  g6 {[%clk 0:03:01]} 6. Be3 {[%clk 0:02:58]}  Nc6 {[%clk 0:02:58]} 7. f3 {[%clk 0:02:55]}  h5 {[%clk 0:02:58]} 8. Qd2 {[%clk 0:02:54]}  Nxd4 {[%clk 0:02:58]} 9. Bxd4 {[%clk 0:02:55]}  Bh6 {[%clk 0:02:59]} 10. Be3 {[%clk 0:02:53]}  Bxe3 {[%clk 0:02:58]} 11. Qxe3 {[%clk 0:02:53]}  Be6 {[%clk 0:02:59]} 12. O-O-O {[%clk 0:02:52]}  Qa5 {[%clk 0:02:56]} 13. Bb5+ {[%clk 0:02:52]}  Kf8 {[%clk 0:02:55]} 14. e5 {[%clk 0:02:06]}  dxe5 {[%clk 0:02:48]} 15. Qxe5 {[%clk 0:02:04]}  a6 {[%clk 0:02:43]} 16. Rd5 {[%clk 0:00:32]}  axb5 {[%clk 0:02:20]} 17. Re1 {[%clk 0:00:27]}  Bxd5 {[%clk 0:02:05]} 18. Nxd5 {[%clk 0:00:19]}  Kg7 {[%clk 0:01:31]} 19. Nxe7 {[%clk 0:00:14]}  Rhe8 {[%clk 0:01:19]} 20. Rd1 {[%clk 0:00:09]}  Qxa2 {[%clk 0:01:11]} 21. Rd6 {[%clk 0:00:08]}  Qa1+ {[%clk 0:00:46]} 22. Kd2 {[%clk 0:00:08]}  Qa5+ {[%clk 0:00:22]} 23. c3 {[%clk 0:00:08]}  Rad8 {[%clk 0:00:20]} 24. Qxf6+ {[%clk 0:00:08]}  Kh6 {[%clk 0:00:00]} 25. Nf5+ {[%clk 0:00:08]} 1-0


[Site "https://www.chess.com"]

[Event "Titled Tuesday Blitz May 16 Early 2023"]
[White "Krsnik Cohar, Ivan Vihor"]
[Black "Gurevich, Dmitry"]
[WhiteFideId "14520044"]
[BlackFideId "2000407"]
[WhiteElo "2414"]
[BlackElo "2506"]
[Result "0-1"]
[Round "07"]
[TimeControl "180+2"]
[Date "2023.05.16"]
[WhiteClock "0:00:29"]
[BlackClock "0:01:04"]

1. e4 {[%clk 0:03:00]}  c5 {[%clk 0:02:59]} 2. Ne2 {[%clk 0:03:01]}  d6 {[%clk 0:02:56]} 3. g3 {[%clk 0:03:00]}  Nf6 {[%clk 0:02:56]} 4. Bg2 {[%clk 0:03:00]}  g6 {[%clk 0:02:56]} 5. c3 {[%clk 0:03:00]}  Bg7 {[%clk 0:02:53]} 6. d4 {[%clk 0:03:00]}  cxd4 {[%clk 0:02:52]} 7. cxd4 {[%clk 0:03:01]}  O-O {[%clk 0:02:48]} 8. Nbc3 {[%clk 0:03:00]}  Nc6 {[%clk 0:02:48]} 9. h3 {[%clk 0:03:00]}  Bd7 {[%clk 0:02:46]} 10. Be3 {[%clk 0:03:00]}  a6 {[%clk 0:02:44]} 11. O-O {[%clk 0:02:58]}  b5 {[%clk 0:02:43]} 12. Rc1 {[%clk 0:02:57]}  Rc8 {[%clk 0:02:39]} 13. Qd2 {[%clk 0:02:56]}  e5 {[%clk 0:02:33]} 14. f4 {[%clk 0:02:54]}  exd4 {[%clk 0:02:26]} 15. Nxd4 {[%clk 0:02:54]}  Re8 {[%clk 0:02:21]} 16. Nxc6 {[%clk 0:02:15]}  Bxc6 {[%clk 0:02:21]} 17. Bd4 {[%clk 0:02:14]}  b4 {[%clk 0:01:55]} 18. Nd5 {[%clk 0:01:53]}  Nxe4 {[%clk 0:01:47]} 19. Bxe4 {[%clk 0:01:53]}  Rxe4 {[%clk 0:01:46]} 20. Bxg7 {[%clk 0:01:51]}  Kxg7 {[%clk 0:01:42]} 21. Rce1 {[%clk 0:00:38]}  Bxd5 {[%clk 0:01:35]} 22. Qxd5 {[%clk 0:00:33]}  Qb6+ {[%clk 0:01:29]} 23. Kh1 {[%clk 0:00:33]}  Rxe1 {[%clk 0:01:23]} 24. Rxe1 {[%clk 0:00:33]}  Qf2 {[%clk 0:01:13]} 25. Rd1 {[%clk 0:00:31]}  Rc2 {[%clk 0:01:08]} 26. Qd4+ {[%clk 0:00:31]}  Qxd4 {[%clk 0:01:07]} 27. Rxd4 {[%clk 0:00:32]}  Rxb2 {[%clk 0:01:06]} 28. g4 {[%clk 0:00:29]}  a5 {[%clk 0:01:04]} 0-1


[Site "https://www.chess.com"]

[Event "Titled Tuesday Blitz May 16 Early 2023"]
[White "Senft, Sean"]
[Black "Gonzalez, Francisco Silva"]
[WhiteFideId "2044960"]
[BlackFideId "1512285"]
[WhiteElo "1989"]
[BlackElo "2074"]
[Result "1-0"]
[Round "07"]
[TimeControl "180+2"]
[Date "2023.05.16"]
[WhiteClock "0:00:18"]
[BlackClock "0:00:00"]

1. d4 {[%clk 0:03:00]}  Nf6 {[%clk 0:02:56]} 2. c4 {[%clk 0:02:57]}  e6 {[%clk 0:02:55]} 3. Nc3 {[%clk 0:02:57]}  Bb4 {[%clk 0:02:54]} 4. Nf3 {[%clk 0:02:58]}  b6 {[%clk 0:02:53]} 5. Bg5 {[%clk 0:02:58]}  Bb7 {[%clk 0:02:52]} 6. e3 {[%clk 0:02:59]}  h6 {[%clk 0:02:51]} 7. Bh4 {[%clk 0:02:59]}  g5 {[%clk 0:02:50]} 8. Bg3 {[%clk 0:03:00]}  Ne4 {[%clk 0:02:50]} 9. Qc2 {[%clk 0:03:00]}  Bxc3+ {[%clk 0:02:49]} 10. bxc3 {[%clk 0:03:00]}  d6 {[%clk 0:02:50]} 11. Nd2 {[%clk 0:03:00]}  f5 {[%clk 0:02:49]} 12. f3 {[%clk 0:03:00]}  Nxg3 {[%clk 0:02:47]} 13. hxg3 {[%clk 0:03:01]}  Qf6 {[%clk 0:02:47]} 14. Bd3 {[%clk 0:03:00]}  Nd7 {[%clk 0:02:47]} 15. a4 {[%clk 0:02:50]}  a5 {[%clk 0:02:42]} 16. Rb1 {[%clk 0:02:50]}  O-O-O {[%clk 0:02:41]} 17. Qb2 {[%clk 0:02:46]}  e5 {[%clk 0:02:31]} 18. Nb3 {[%clk 0:02:44]}  e4 {[%clk 0:02:21]} 19. fxe4 {[%clk 0:02:28]}  fxe4 {[%clk 0:02:13]} 20. Rf1 {[%clk 0:02:26]}  Qe6 {[%clk 0:02:02]} 21. Be2 {[%clk 0:02:26]}  Ba6 {[%clk 0:01:49]} 22. Nxa5 {[%clk 0:01:58]}  Rdf8 {[%clk 0:01:48]} 23. Rxf8+ {[%clk 0:01:53]}  Rxf8 {[%clk 0:01:47]} 24. Nc6 {[%clk 0:00:43]}  Bxc4 {[%clk 0:01:44]} 25. d5 {[%clk 0:00:38]}  Qf6 {[%clk 0:01:17]} 26. Bxc4 {[%clk 0:00:29]}  Nc5 {[%clk 0:01:17]} 27. Bb5 {[%clk 0:00:22]}  h5 {[%clk 0:01:06]} 28. a5 {[%clk 0:00:22]}  h4 {[%clk 0:01:04]} 29. axb6 {[%clk 0:00:21]}  cxb6 {[%clk 0:00:58]} 30. Qa2 {[%clk 0:00:19]}  hxg3 {[%clk 0:00:49]} 31. Qa8+ {[%clk 0:00:19]}  Kc7 {[%clk 0:00:47]} 32. Qa7+ {[%clk 0:00:18]}  Nb7 {[%clk 0:00:46]} 33. Be2 {[%clk 0:00:15]}  Qxc3+ {[%clk 0:00:45]} 34. Kd1 {[%clk 0:00:14]}  Qc5 {[%clk 0:00:16]} 35. Rc1 {[%clk 0:00:15]}  Qxe3 {[%clk 0:00:13]} 36. Ne5+ {[%clk 0:00:14]}  Qxc1+ {[%clk 0:00:13]} 37. Kxc1 {[%clk 0:00:14]}  dxe5 {[%clk 0:00:13]} 38. Ba6 {[%clk 0:00:14]}  Rb8 {[%clk 0:00:13]} 39. d6+ {[%clk 0:00:15]}  Kxd6 {[%clk 0:00:13]} 40. Bxb7 {[%clk 0:00:15]}  Rd8 {[%clk 0:00:12]} 41. Bxe4 {[%clk 0:00:14]}  Rc8+ {[%clk 0:00:11]} 42. Kd2 {[%clk 0:00:14]}  Rc6 {[%clk 0:00:11]} 43. Bxc6 {[%clk 0:00:14]}  Kc5 {[%clk 0:00:11]} 44. Qg7 {[%clk 0:00:14]}  Kxc6 {[%clk 0:00:10]} 45. Qxe5 {[%clk 0:00:15]}  b5 {[%clk 0:00:09]} 46. Qxg5 {[%clk 0:00:16]}  b4 {[%clk 0:00:10]} 47. Qxg3 {[%clk 0:00:16]}  b3 {[%clk 0:00:11]} 48. Qxb3 {[%clk 0:00:17]}  Kc5 {[%clk 0:00:00]} 49. Qe3+ {[%clk 0:00:18]} 1-0


[Site "https://www.chess.com"]

[Event "Titled Tuesday Blitz May 16 Early 2023"]
[White "Tarasova, Viktoriya"]
[Black "Dino_Ballecer"]
[WhiteFideId "4175840"]
[WhiteElo "2182"]
[BlackElo "2526"]
[Result "0-1"]
[Round "07"]
[TimeControl "180+2"]
[Date "2023.05.16"]
[WhiteClock "0:00:01"]
[BlackClock "0:00:03"]

1. d4 {[%clk 0:03:00]}  Nf6 {[%clk 0:02:59]} 2. c4 {[%clk 0:03:01]}  c5 {[%clk 0:02:59]} 3. d5 {[%clk 0:03:01]}  e6 {[%clk 0:02:59]} 4. Nc3 {[%clk 0:03:01]}  exd5 {[%clk 0:02:59]} 5. cxd5 {[%clk 0:03:01]}  d6 {[%clk 0:03:00]} 6. Nf3 {[%clk 0:03:01]}  g6 {[%clk 0:03:01]} 7. Bf4 {[%clk 0:03:01]}  Bg7 {[%clk 0:03:01]} 8. h3 {[%clk 0:03:01]}  O-O {[%clk 0:03:01]} 9. e3 {[%clk 0:03:01]}  a6 {[%clk 0:02:52]} 10. a4 {[%clk 0:03:01]}  Re8 {[%clk 0:02:52]} 11. Nd2 {[%clk 0:02:56]}  Nh5 {[%clk 0:02:47]} 12. Bh2 {[%clk 0:02:55]}  Be5 {[%clk 0:02:47]} 13. Bxe5 {[%clk 0:02:54]}  Rxe5 {[%clk 0:02:46]} 14. Be2 {[%clk 0:02:51]}  Nf6 {[%clk 0:02:42]} 15. Nc4 {[%clk 0:02:51]}  Re8 {[%clk 0:02:42]} 16. O-O {[%clk 0:02:48]}  Qc7 {[%clk 0:02:30]} 17. Qc2 {[%clk 0:02:43]}  Nbd7 {[%clk 0:02:30]} 18. e4 {[%clk 0:02:40]}  Rb8 {[%clk 0:02:23]} 19. a5 {[%clk 0:02:38]}  b5 {[%clk 0:02:20]} 20. axb6 {[%clk 0:02:38]}  Nxb6 {[%clk 0:02:21]} 21. Na5 {[%clk 0:02:38]}  c4 {[%clk 0:02:04]} 22. Nc6 {[%clk 0:02:27]}  Ra8 {[%clk 0:02:04]} 23. f4 {[%clk 0:02:11]}  Bd7 {[%clk 0:02:01]} 24. Na5 {[%clk 0:02:04]}  Bb5 {[%clk 0:01:56]} 25. Bf3 {[%clk 0:01:58]}  Nfd7 {[%clk 0:01:50]} 26. Kh1 {[%clk 0:01:51]}  Nc5 {[%clk 0:01:44]} 27. e5 {[%clk 0:01:36]}  Nd3 {[%clk 0:01:05]} 28. e6 {[%clk 0:01:16]}  f5 {[%clk 0:00:50]} 29. g3 {[%clk 0:01:07]}  Qc5 {[%clk 0:00:40]} 30. Qg2 {[%clk 0:00:52]}  Ra7 {[%clk 0:00:31]} 31. Nxb5 {[%clk 0:00:33]}  axb5 {[%clk 0:00:21]} 32. Nc6 {[%clk 0:00:33]}  Rxa1 {[%clk 0:00:19]} 33. Rxa1 {[%clk 0:00:33]}  Nb4 {[%clk 0:00:19]} 34. Nxb4 {[%clk 0:00:20]}  Qxb4 {[%clk 0:00:20]} 35. Ra7 {[%clk 0:00:17]}  Qc5 {[%clk 0:00:10]} 36. Rb7 {[%clk 0:00:15]}  Ra8 {[%clk 0:00:05]} 37. Kh2 {[%clk 0:00:14]}  Ra2 {[%clk 0:00:03]} 38. e7 {[%clk 0:00:14]}  Ra8 {[%clk 0:00:02]} 39. g4 {[%clk 0:00:14]}  fxg4 {[%clk 0:00:01]} 40. Bxg4 {[%clk 0:00:14]}  Re8 {[%clk 0:00:01]} 41. Be6+ {[%clk 0:00:13]}  Kg7 {[%clk 0:00:01]} 42. Qc2 {[%clk 0:00:11]}  Nxd5 {[%clk 0:00:01]} 43. Bxd5 {[%clk 0:00:10]}  Qxd5 {[%clk 0:00:01]} 44. Qc3+ {[%clk 0:00:11]}  Kf7 {[%clk 0:00:01]} 45. f5 {[%clk 0:00:07]}  Qxb7 {[%clk 0:00:02]} 46. fxg6+ {[%clk 0:00:05]}  hxg6 {[%clk 0:00:02]} 47. Qd4 {[%clk 0:00:03]}  Qf3 {[%clk 0:00:02]} 48. Qf4+ {[%clk 0:00:01]}  Qxf4+ {[%clk 0:00:03]} 0-1


[Site "https://www.chess.com"]

[Event "Titled Tuesday Blitz May 16 Early 2023"]
[White "Bilan, Danila"]
[Black "Szente Varga, Fruzsina"]
[WhiteFideId "24161918"]
[BlackFideId "712264"]
[WhiteElo "2182"]
[BlackElo "1994"]
[Result "1-0"]
[Round "07"]
[TimeControl "180+2"]
[Date "2023.05.16"]
[WhiteClock "0:00:04"]
[BlackClock "0:00:10"]

1. d4 {[%clk 0:03:00]}  Nf6 {[%clk 0:02:34]} 2. Nf3 {[%clk 0:03:00]}  g6 {[%clk 0:02:34]} 3. Bg5 {[%clk 0:02:59]}  Bg7 {[%clk 0:02:34]} 4. c3 {[%clk 0:02:59]}  d5 {[%clk 0:02:34]} 5. Nbd2 {[%clk 0:03:00]}  O-O {[%clk 0:02:34]} 6. e3 {[%clk 0:03:00]}  c6 {[%clk 0:02:31]} 7. Bd3 {[%clk 0:02:59]}  Nbd7 {[%clk 0:02:31]} 8. O-O {[%clk 0:02:58]}  h6 {[%clk 0:02:32]} 9. Bh4 {[%clk 0:02:58]}  Re8 {[%clk 0:02:31]} 10. e4 {[%clk 0:02:32]}  dxe4 {[%clk 0:02:29]} 11. Nxe4 {[%clk 0:02:33]}  Nxe4 {[%clk 0:02:29]} 12. Bxe4 {[%clk 0:02:34]}  Nf6 {[%clk 0:02:29]} 13. Bc2 {[%clk 0:02:31]}  Bg4 {[%clk 0:02:29]} 14. h3 {[%clk 0:02:28]}  Be6 {[%clk 0:02:20]} 15. Re1 {[%clk 0:02:19]}  Qb6 {[%clk 0:02:19]} 16. Rxe6 {[%clk 0:01:41]}  fxe6 {[%clk 0:02:18]} 17. Bxg6 {[%clk 0:01:41]}  Red8 {[%clk 0:02:05]} 18. Ne5 {[%clk 0:01:25]}  Qxb2 {[%clk 0:01:46]} 19. Bf7+ {[%clk 0:01:13]}  Kf8 {[%clk 0:01:44]} 20. Rc1 {[%clk 0:00:38]}  c5 {[%clk 0:01:36]} 21. Bxe6 {[%clk 0:00:28]}  Bh8 {[%clk 0:00:53]} 22. Rc2 {[%clk 0:00:20]}  Qb6 {[%clk 0:00:52]} 23. Bc4 {[%clk 0:00:06]}  cxd4 {[%clk 0:00:50]} 24. Ng6+ {[%clk 0:00:05]}  Kg7 {[%clk 0:00:49]} 25. Nxe7 {[%clk 0:00:05]}  dxc3 {[%clk 0:00:45]} 26. Qf3 {[%clk 0:00:05]}  Rf8 {[%clk 0:00:20]} 27. Qg3+ {[%clk 0:00:04]}  Ng4 {[%clk 0:00:15]} 28. Qxg4+ {[%clk 0:00:04]}  Kh7 {[%clk 0:00:10]} 29. Bd3+ {[%clk 0:00:04]} 1-0


[Site "https://www.chess.com"]

[Event "Titled Tuesday Blitz May 16 Early 2023"]
[White "Golubev, Mikhail"]
[Black "Lesbekova, Assel"]
[WhiteFideId "14100983"]
[BlackFideId "13713248"]
[WhiteElo "2374"]
[BlackElo "1805"]
[Result "0-1"]
[Round "07"]
[TimeControl "180+2"]
[Date "2023.05.16"]
[WhiteClock "0:00:00"]
[BlackClock "0:01:02"]

1. e4 {[%clk 0:02:55]}  c5 {[%clk 0:02:59]} 2. Nf3 {[%clk 0:02:55]}  Nc6 {[%clk 0:03:00]} 3. Nc3 {[%clk 0:02:54]}  a6 {[%clk 0:02:54]} 4. d4 {[%clk 0:02:51]}  cxd4 {[%clk 0:02:54]} 5. Nxd4 {[%clk 0:02:52]}  e5 {[%clk 0:02:54]} 6. Be3 {[%clk 0:02:52]}  exd4 {[%clk 0:02:54]} 7. Bxd4 {[%clk 0:02:53]}  Nxd4 {[%clk 0:02:51]} 8. Qxd4 {[%clk 0:02:53]}  Qf6 {[%clk 0:02:51]} 9. e5 {[%clk 0:02:50]}  Qd8 {[%clk 0:02:41]} 10. O-O-O {[%clk 0:02:46]}  Nh6 {[%clk 0:02:34]} 11. Nd5 {[%clk 0:02:34]}  Be7 {[%clk 0:02:25]} 12. g4 {[%clk 0:02:05]}  O-O {[%clk 0:01:53]} 13. f4 {[%clk 0:02:05]}  Bh4 {[%clk 0:01:41]} 14. Bd3 {[%clk 0:01:43]}  d6 {[%clk 0:01:27]} 15. Nb6 {[%clk 0:00:04]}  Rb8 {[%clk 0:01:20]} 16. exd6 {[%clk 0:00:04]}  Bxg4 {[%clk 0:01:15]} 17. Rdg1 {[%clk 0:00:03]}  Bf6 {[%clk 0:01:11]} 18. Qe4 {[%clk 0:00:03]}  Bf5 {[%clk 0:01:10]} 19. Qd5 {[%clk 0:00:02]}  Bxd3 {[%clk 0:01:05]} 20. Qxd3 {[%clk 0:00:03]}  Qxb6 {[%clk 0:01:04]} 21. Qd5 {[%clk 0:00:00]}  Qxb2+ {[%clk 0:01:02]} 0-1


[Site "https://www.chess.com"]

[Event "Titled Tuesday Blitz May 16 Early 2023"]
[White "Wimalasuriya, Kasun M."]
[Black "Yurasova, Daria"]
[WhiteFideId "9906789"]
[BlackFideId "34146919"]
[WhiteElo "2259"]
[BlackElo "2109"]
[Result "1-0"]
[Round "07"]
[TimeControl "180+2"]
[Date "2023.05.16"]
[WhiteClock "0:00:32"]
[BlackClock "0:00:02"]

1. d4 {[%clk 0:02:59]}  d5 {[%clk 0:03:00]} 2. c4 {[%clk 0:02:59]}  dxc4 {[%clk 0:03:00]} 3. Nf3 {[%clk 0:02:59]}  Nf6 {[%clk 0:02:58]} 4. Nc3 {[%clk 0:02:58]}  Bf5 {[%clk 0:02:56]} 5. Bf4 {[%clk 0:02:52]}  e6 {[%clk 0:02:55]} 6. e3 {[%clk 0:02:52]}  Bb4 {[%clk 0:02:51]} 7. Bxc4 {[%clk 0:02:50]}  O-O {[%clk 0:02:52]} 8. O-O {[%clk 0:02:50]}  Nbd7 {[%clk 0:02:47]} 9. Rc1 {[%clk 0:02:49]}  Bd6 {[%clk 0:02:47]} 10. Ne5 {[%clk 0:02:48]}  Nb6 {[%clk 0:02:46]} 11. Be2 {[%clk 0:02:47]}  Nbd5 {[%clk 0:02:44]} 12. Bg3 {[%clk 0:02:46]}  c6 {[%clk 0:02:42]} 13. Re1 {[%clk 0:02:38]}  Nxc3 {[%clk 0:02:40]} 14. Rxc3 {[%clk 0:02:37]}  Ne4 {[%clk 0:02:40]} 15. Rb3 {[%clk 0:02:36]}  Nxg3 {[%clk 0:02:40]} 16. hxg3 {[%clk 0:02:35]}  Bxe5 {[%clk 0:02:38]} 17. dxe5 {[%clk 0:02:34]}  Qe7 {[%clk 0:02:38]} 18. Qd6 {[%clk 0:02:30]}  Rfe8 {[%clk 0:02:17]} 19. Bd3 {[%clk 0:02:22]}  Bxd3 {[%clk 0:02:12]} 20. Rxd3 {[%clk 0:02:20]}  Qg5 {[%clk 0:02:10]} 21. Red1 {[%clk 0:02:17]}  h6 {[%clk 0:02:08]} 22. Qd4 {[%clk 0:02:07]}  b6 {[%clk 0:02:04]} 23. Qf4 {[%clk 0:02:06]}  Qg6 {[%clk 0:02:03]} 24. Rd7 {[%clk 0:02:06]}  c5 {[%clk 0:02:02]} 25. Qa4 {[%clk 0:01:57]}  a6 {[%clk 0:01:44]} 26. Qc6 {[%clk 0:01:31]}  Rab8 {[%clk 0:01:41]} 27. Rb7 {[%clk 0:01:28]}  Qc2 {[%clk 0:01:19]} 28. Rdd7 {[%clk 0:01:26]}  Qxb2 {[%clk 0:01:07]} 29. Rxf7 {[%clk 0:01:23]}  Qb1+ {[%clk 0:00:56]} 30. Kh2 {[%clk 0:01:22]}  Qg6 {[%clk 0:00:57]} 31. Qd7 {[%clk 0:01:19]}  Rxb7 {[%clk 0:00:47]} 32. Qxe8+ {[%clk 0:01:16]}  Kh7 {[%clk 0:00:47]} 33. Rf8 {[%clk 0:01:13]}  Qxe8 {[%clk 0:00:44]} 34. Rxe8 {[%clk 0:01:13]}  b5 {[%clk 0:00:29]} 35. Rxe6 {[%clk 0:01:13]}  a5 {[%clk 0:00:30]} 36. Rc6 {[%clk 0:01:13]}  c4 {[%clk 0:00:28]} 37. f4 {[%clk 0:01:13]}  a4 {[%clk 0:00:27]} 38. f5 {[%clk 0:01:11]}  a3 {[%clk 0:00:20]} 39. g4 {[%clk 0:01:07]}  Ra7 {[%clk 0:00:14]} 40. Rc5 {[%clk 0:01:06]}  b4 {[%clk 0:00:13]} 41. Rxc4 {[%clk 0:01:02]}  b3 {[%clk 0:00:13]} 42. Rc1 {[%clk 0:01:00]}  b2 {[%clk 0:00:13]} 43. Rd1 {[%clk 0:00:59]}  Rb7 {[%clk 0:00:12]} 44. Rb1 {[%clk 0:00:59]}  Rc7 {[%clk 0:00:12]} 45. e6 {[%clk 0:00:58]}  Kg8 {[%clk 0:00:13]} 46. Rd1 {[%clk 0:00:57]}  Kf8 {[%clk 0:00:12]} 47. Rd8+ {[%clk 0:00:50]}  Ke7 {[%clk 0:00:13]} 48. Rb8 {[%clk 0:00:50]}  Rc1 {[%clk 0:00:12]} 49. Rb7+ {[%clk 0:00:50]}  Kf6 {[%clk 0:00:12]} 50. Rf7+ {[%clk 0:00:49]}  Kg5 {[%clk 0:00:10]} 51. e7 {[%clk 0:00:49]}  b1=Q {[%clk 0:00:06]} 52. e8=Q {[%clk 0:00:49]}  Rh1+ {[%clk 0:00:06]} 53. Kg3 {[%clk 0:00:49]}  Qe1+ {[%clk 0:00:05]} 54. Kf3 {[%clk 0:00:50]}  Rf1+ {[%clk 0:00:05]} 55. Ke4 {[%clk 0:00:50]}  Rf4+ {[%clk 0:00:02]} 56. Kd5 {[%clk 0:00:46]}  Qd2+ {[%clk 0:00:01]} 57. Kc6 {[%clk 0:00:40]}  Qc3+ {[%clk 0:00:01]} 58. Kd7 {[%clk 0:00:39]}  Qd3+ {[%clk 0:00:02]} 59. Kc8 {[%clk 0:00:39]}  Qc4+ {[%clk 0:00:02]} 60. Rc7 {[%clk 0:00:39]}  Qa6+ {[%clk 0:00:02]} 61. Kd8 {[%clk 0:00:39]}  Rb4 {[%clk 0:00:02]} 62. Rxg7+ {[%clk 0:00:36]}  Kh4 {[%clk 0:00:02]} 63. Qh5+ {[%clk 0:00:34]}  Kg3 {[%clk 0:00:02]} 64. Qh3+ {[%clk 0:00:35]}  Kf2 {[%clk 0:00:03]} 65. Qf3+ {[%clk 0:00:35]}  Kg1 {[%clk 0:00:04]} 66. Rd7 {[%clk 0:00:33]}  Rb8+ {[%clk 0:00:04]} 67. Ke7 {[%clk 0:00:33]}  Qa4 {[%clk 0:00:02]} 68. Rd1+ {[%clk 0:00:32]}  Kh2 {[%clk 0:00:02]} 69. Qh3# {[%clk 0:00:32]} 1-0


[Site "https://www.chess.com"]